[Event "Titled Tuesday Blitz February 28 Late 2023"]
[White "Kravtsiv, Martyn"]
[Black "Bortnyk, Olexandr"]
[WhiteFideId "14113147"]
[BlackFideId "14120828"]
[WhiteElo "2695"]
[BlackElo "2734"]
[Result "0-1"]
[Round "07"]
[TimeControl "180+2"]
[Date "2023.02.28"]
[WhiteClock "0:00:09"]
[BlackClock "0:00:15"]

1. e4 {[%clk 0:03:00]}  Nf6 {[%clk 0:02:56]} 2. Nc3 {[%clk 0:03:00]}  d5 {[%clk 0:02:54]} 3. exd5 {[%clk 0:03:01]}  Nxd5 {[%clk 0:02:55]} 4. Nf3 {[%clk 0:03:01]}  Nxc3 {[%clk 0:02:55]} 5. bxc3 {[%clk 0:03:00]}  g6 {[%clk 0:02:56]} 6. h4 {[%clk 0:03:00]}  h5 {[%clk 0:02:54]} 7. Bc4 {[%clk 0:02:52]}  Bg7 {[%clk 0:02:54]} 8. Ng5 {[%clk 0:02:36]}  O-O {[%clk 0:02:53]} 9. Qf3 {[%clk 0:02:35]}  Bf5 {[%clk 0:02:36]} 10. Qxb7 {[%clk 0:02:21]}  Nd7 {[%clk 0:02:35]} 11. Ba3 {[%clk 0:02:21]}  Ne5 {[%clk 0:02:22]} 12. Bb3 {[%clk 0:02:15]}  Rb8 {[%clk 0:02:09]} 13. Qxa7 {[%clk 0:01:52]}  Ra8 {[%clk 0:01:57]} 14. Qc5 {[%clk 0:01:52]}  Nd7 {[%clk 0:01:41]} 15. Qb4 {[%clk 0:01:24]}  c5 {[%clk 0:01:39]} 16. Qc4 {[%clk 0:01:24]}  Rxa3 {[%clk 0:01:34]} 17. Nxf7 {[%clk 0:01:24]}  Rxf7 {[%clk 0:00:53]} 18. Qxf7+ {[%clk 0:01:23]}  Kh7 {[%clk 0:00:54]} 19. Qd5 {[%clk 0:01:13]}  Qc7 {[%clk 0:00:52]} 20. O-O {[%clk 0:01:11]}  Nb6 {[%clk 0:00:43]} 21. Qg8+ {[%clk 0:00:55]}  Kh6 {[%clk 0:00:43]} 22. Rae1 {[%clk 0:00:43]}  c4 {[%clk 0:00:41]} 23. Qf7 {[%clk 0:00:19]}  Ra7 {[%clk 0:00:41]} 24. d4 {[%clk 0:00:14]}  cxb3 {[%clk 0:00:40]} 25. cxb3 {[%clk 0:00:13]}  Qxc3 {[%clk 0:00:21]} 26. Rxe7 {[%clk 0:00:13]}  Rxe7 {[%clk 0:00:21]} 27. Qxe7 {[%clk 0:00:14]}  Nd5 {[%clk 0:00:20]} 28. Qg5+ {[%clk 0:00:13]}  Kh7 {[%clk 0:00:21]} 29. g3 {[%clk 0:00:11]}  Bxd4 {[%clk 0:00:16]} 30. Qd8 {[%clk 0:00:09]}  Qxg3+ {[%clk 0:00:15]} 0-1


[Site "https://www.chess.com"]

[Event "Titled Tuesday Blitz February 28 Late 2023"]
[White "Bortnyk, Mykola"]
[Black "Fier, Alexandr"]
[WhiteFideId "14120836"]
[BlackFideId "2107139"]
[WhiteElo "2582"]
[BlackElo "2610"]
[Result "1-0"]
[Round "07"]
[TimeControl "180+2"]
[Date "2023.02.28"]
[WhiteClock "0:00:06"]
[BlackClock "0:00:16"]

1. e4 {[%clk 0:03:00]}  c6 {[%clk 0:03:00]} 2. d4 {[%clk 0:02:59]}  d5 {[%clk 0:03:00]} 3. Nc3 {[%clk 0:02:59]}  dxe4 {[%clk 0:03:00]} 4. Nxe4 {[%clk 0:03:00]}  Bf5 {[%clk 0:03:01]} 5. Ng3 {[%clk 0:03:00]}  Bg6 {[%clk 0:03:01]} 6. Nh3 {[%clk 0:03:01]}  Nf6 {[%clk 0:02:58]} 7. Nf4 {[%clk 0:02:58]}  e5 {[%clk 0:02:58]} 8. Nxg6 {[%clk 0:02:52]}  hxg6 {[%clk 0:02:57]} 9. dxe5 {[%clk 0:02:32]}  Qa5+ {[%clk 0:02:57]} 10. Bd2 {[%clk 0:02:27]}  Qxe5+ {[%clk 0:02:58]} 11. Qe2 {[%clk 0:02:27]}  Nbd7 {[%clk 0:02:58]} 12. O-O-O {[%clk 0:02:23]}  Qxe2 {[%clk 0:02:55]} 13. Bxe2 {[%clk 0:02:23]}  O-O-O {[%clk 0:02:56]} 14. h3 {[%clk 0:02:11]}  Bc5 {[%clk 0:02:55]} 15. Rhf1 {[%clk 0:02:02]}  Nb6 {[%clk 0:02:52]} 16. Bf3 {[%clk 0:01:56]}  Nbd5 {[%clk 0:02:51]} 17. c4 {[%clk 0:01:55]}  Nb4 {[%clk 0:02:50]} 18. a3 {[%clk 0:01:53]}  Nd3+ {[%clk 0:02:50]} 19. Kc2 {[%clk 0:01:53]}  Ne5 {[%clk 0:02:48]} 20. Be2 {[%clk 0:01:49]}  Rh4 {[%clk 0:02:45]} 21. b4 {[%clk 0:01:46]}  Be7 {[%clk 0:02:40]} 22. Bg5 {[%clk 0:01:41]}  Rhd4 {[%clk 0:02:39]} 23. Rxd4 {[%clk 0:01:41]}  Rxd4 {[%clk 0:02:39]} 24. Be3 {[%clk 0:01:40]}  Rd8 {[%clk 0:02:39]} 25. Bxa7 {[%clk 0:01:39]}  c5 {[%clk 0:02:34]} 26. bxc5 {[%clk 0:01:35]}  Nc6 {[%clk 0:02:31]} 27. Bb6 {[%clk 0:01:35]}  Nd4+ {[%clk 0:02:30]} 28. Kb2 {[%clk 0:01:34]}  Re8 {[%clk 0:02:27]} 29. Bd1 {[%clk 0:01:32]}  Nd7 {[%clk 0:02:26]} 30. Ba4 {[%clk 0:01:32]}  Nc6 {[%clk 0:02:27]} 31. Ne4 {[%clk 0:01:21]}  f5 {[%clk 0:02:20]} 32. Nc3 {[%clk 0:01:12]}  Bxc5 {[%clk 0:02:16]} 33. Bxc5 {[%clk 0:01:05]}  Nxc5 {[%clk 0:02:17]} 34. Bb5 {[%clk 0:01:02]}  Re5 {[%clk 0:01:59]} 35. Rd1 {[%clk 0:01:00]}  Ne4 {[%clk 0:01:52]} 36. f3 {[%clk 0:00:42]}  Nc5 {[%clk 0:01:45]} 37. Rd5 {[%clk 0:00:40]}  Rxd5 {[%clk 0:01:45]} 38. Nxd5 {[%clk 0:00:39]}  Nd3+ {[%clk 0:01:33]} 39. Kc3 {[%clk 0:00:39]}  Ne1 {[%clk 0:01:34]} 40. Bxc6 {[%clk 0:00:34]}  bxc6 {[%clk 0:01:35]} 41. Nf4 {[%clk 0:00:34]}  g5 {[%clk 0:01:33]} 42. Kd2 {[%clk 0:00:31]}  Nxf3+ {[%clk 0:01:31]} 43. gxf3 {[%clk 0:00:32]}  gxf4 {[%clk 0:01:31]} 44. c5 {[%clk 0:00:32]}  Kb7 {[%clk 0:01:24]} 45. h4 {[%clk 0:00:20]}  Ka6 {[%clk 0:01:10]} 46. Kd3 {[%clk 0:00:18]}  Kb5 {[%clk 0:01:10]} 47. Kd4 {[%clk 0:00:18]}  g6 {[%clk 0:01:10]} 48. Ke5 {[%clk 0:00:15]}  Kxc5 {[%clk 0:01:10]} 49. Kf6 {[%clk 0:00:16]}  Kb5 {[%clk 0:00:54]} 50. Kxg6 {[%clk 0:00:16]}  c5 {[%clk 0:00:54]} 51. h5 {[%clk 0:00:17]}  c4 {[%clk 0:00:55]} 52. h6 {[%clk 0:00:18]}  c3 {[%clk 0:00:55]} 53. h7 {[%clk 0:00:19]}  c2 {[%clk 0:00:56]} 54. h8=Q {[%clk 0:00:19]}  c1=Q {[%clk 0:00:57]} 55. Qb8+ {[%clk 0:00:18]}  Ka6 {[%clk 0:00:57]} 56. Qa8+ {[%clk 0:00:14]}  Kb6 {[%clk 0:00:56]} 57. Qd8+ {[%clk 0:00:15]}  Ka6 {[%clk 0:00:53]} 58. Qd6+ {[%clk 0:00:14]}  Kb7 {[%clk 0:00:52]} 59. Qd7+ {[%clk 0:00:14]}  Ka6 {[%clk 0:00:51]} 60. Qd6+ {[%clk 0:00:14]}  Kb7 {[%clk 0:00:50]} 61. Qd5+ {[%clk 0:00:15]}  Ka6 {[%clk 0:00:48]} 62. Kxf5 {[%clk 0:00:15]}  Qe3 {[%clk 0:00:40]} 63. a4 {[%clk 0:00:12]}  Ka7 {[%clk 0:00:37]} 64. Qe4 {[%clk 0:00:11]}  Qb3 {[%clk 0:00:32]} 65. Qe7+ {[%clk 0:00:10]}  Ka8 {[%clk 0:00:29]} 66. Qe4+ {[%clk 0:00:08]}  Ka7 {[%clk 0:00:29]} 67. Kxf4 {[%clk 0:00:09]}  Qf7+ {[%clk 0:00:29]} 68. Qf5 {[%clk 0:00:09]}  Qc4+ {[%clk 0:00:29]} 69. Kg5 {[%clk 0:00:09]}  Qxa4 {[%clk 0:00:29]} 70. f4 {[%clk 0:00:09]}  Qa2 {[%clk 0:00:21]} 71. Qd7+ {[%clk 0:00:07]}  Ka6 {[%clk 0:00:21]} 72. f5 {[%clk 0:00:07]}  Qg2+ {[%clk 0:00:20]} 73. Kf6 {[%clk 0:00:07]}  Qb2+ {[%clk 0:00:20]} 74. Kf7 {[%clk 0:00:08]}  Qc2 {[%clk 0:00:17]} 75. Qe6+ {[%clk 0:00:07]}  Ka7 {[%clk 0:00:17]} 76. Kg7 {[%clk 0:00:04]}  Qg2+ {[%clk 0:00:17]} 77. Qg6 {[%clk 0:00:04]}  Qb2+ {[%clk 0:00:16]} 78. f6 {[%clk 0:00:05]}  Ka6 {[%clk 0:00:15]} 79. Qd3+ {[%clk 0:00:04]}  Ka5 {[%clk 0:00:15]} 80. Qd5+ {[%clk 0:00:03]}  Ka4 {[%clk 0:00:15]} 81. Qa8+ {[%clk 0:00:04]}  Kb3 {[%clk 0:00:15]} 82. Qb7+ {[%clk 0:00:04]}  Kc3 {[%clk 0:00:16]} 83. Qxb2+ {[%clk 0:00:05]}  Kxb2 {[%clk 0:00:16]} 84. f7 {[%clk 0:00:06]} 1-0


[Site "https://www.chess.com"]

[Event "Titled Tuesday Blitz February 28 Late 2023"]
[White "Pakleza, Zbigniew"]
[Black "Duda, Jan-Krzysztof"]
[WhiteFideId "1119290"]
[BlackFideId "1170546"]
[WhiteElo "2410"]
[BlackElo "2790"]
[Result "0-1"]
[Round "07"]
[TimeControl "180+2"]
[Date "2023.02.28"]
[WhiteClock "0:00:04"]
[BlackClock "0:00:51"]

1. d4 {[%clk 0:03:00]}  d6 {[%clk 0:02:59]} 2. Nf3 {[%clk 0:03:00]}  Nd7 {[%clk 0:02:59]} 3. Bf4 {[%clk 0:03:00]}  g6 {[%clk 0:02:58]} 4. e3 {[%clk 0:03:01]}  Bg7 {[%clk 0:02:58]} 5. h3 {[%clk 0:03:01]}  e5 {[%clk 0:02:58]} 6. Bh2 {[%clk 0:03:02]}  Nh6 {[%clk 0:02:50]} 7. Be2 {[%clk 0:03:01]}  O-O {[%clk 0:02:50]} 8. O-O {[%clk 0:03:01]}  Kh8 {[%clk 0:02:49]} 9. c4 {[%clk 0:02:54]}  f5 {[%clk 0:02:48]} 10. Nc3 {[%clk 0:02:54]}  Nf7 {[%clk 0:02:48]} 11. Rc1 {[%clk 0:02:51]}  a5 {[%clk 0:02:47]} 12. c5 {[%clk 0:02:23]}  e4 {[%clk 0:02:32]} 13. Nd2 {[%clk 0:02:21]}  dxc5 {[%clk 0:02:32]} 14. dxc5 {[%clk 0:02:21]}  Nde5 {[%clk 0:02:21]} 15. Nc4 {[%clk 0:02:08]}  Nxc4 {[%clk 0:02:20]} 16. Bxc4 {[%clk 0:02:08]}  Ne5 {[%clk 0:02:21]} 17. Be2 {[%clk 0:01:56]}  c6 {[%clk 0:02:12]} 18. Qd6 {[%clk 0:01:25]}  Qxd6 {[%clk 0:02:11]} 19. cxd6 {[%clk 0:01:26]}  Be6 {[%clk 0:02:11]} 20. Rfd1 {[%clk 0:01:24]}  Nd7 {[%clk 0:02:10]} 21. b3 {[%clk 0:01:18]}  b5 {[%clk 0:01:48]} 22. Rd2 {[%clk 0:00:51]}  Rfb8 {[%clk 0:01:35]} 23. Bf1 {[%clk 0:00:49]}  Rb6 {[%clk 0:01:26]} 24. Ne2 {[%clk 0:00:44]}  a4 {[%clk 0:01:24]} 25. b4 {[%clk 0:00:36]}  a3 {[%clk 0:01:24]} 26. Nd4 {[%clk 0:00:37]}  Bxd4 {[%clk 0:01:24]} 27. exd4 {[%clk 0:00:31]}  g5 {[%clk 0:01:17]} 28. Be5+ {[%clk 0:00:26]}  Kg8 {[%clk 0:01:17]} 29. Rdc2 {[%clk 0:00:20]}  Bd5 {[%clk 0:01:16]} 30. Rc3 {[%clk 0:00:18]}  Rba6 {[%clk 0:01:12]} 31. R3c2 {[%clk 0:00:16]}  Kf7 {[%clk 0:01:08]} 32. Be2 {[%clk 0:00:15]}  Nxe5 {[%clk 0:01:05]} 33. dxe5 {[%clk 0:00:15]}  Ke6 {[%clk 0:01:05]} 34. Rc5 {[%clk 0:00:11]}  Bxa2 {[%clk 0:00:59]} 35. Rxc6 {[%clk 0:00:09]}  Rxc6 {[%clk 0:00:58]} 36. Rxc6 {[%clk 0:00:10]}  Bc4 {[%clk 0:00:50]} 37. d7+ {[%clk 0:00:05]}  Kxd7 {[%clk 0:00:50]} 38. Rd6+ {[%clk 0:00:06]}  Ke7 {[%clk 0:00:50]} 39. Bxc4 {[%clk 0:00:03]}  bxc4 {[%clk 0:00:51]} 40. Rd1 {[%clk 0:00:04]}  c3 {[%clk 0:00:51]} 0-1


[Site "https://www.chess.com"]

[Event "Titled Tuesday Blitz February 28 Late 2023"]
[White "Paravyan, David"]
[Black "Norowitz, Yaacov"]
[WhiteFideId "4194985"]
[BlackFideId "2024799"]
[WhiteElo "2577"]
[BlackElo "2401"]
[Result "1-0"]
[Round "07"]
[TimeControl "180+2"]
[Date "2023.02.28"]
[WhiteClock "0:00:04"]
[BlackClock "0:00:01"]

1. d4 {[%clk 0:03:00]}  Nf6 {[%clk 0:02:58]} 2. c4 {[%clk 0:03:00]}  e5 {[%clk 0:02:58]} 3. dxe5 {[%clk 0:02:59]}  Ne4 {[%clk 0:02:58]} 4. a3 {[%clk 0:02:59]}  d6 {[%clk 0:02:58]} 5. Nf3 {[%clk 0:02:45]}  Nc6 {[%clk 0:02:42]} 6. Qd3 {[%clk 0:02:37]}  Nc5 {[%clk 0:02:40]} 7. Qe3 {[%clk 0:02:03]}  dxe5 {[%clk 0:02:29]} 8. b4 {[%clk 0:02:02]}  Ne6 {[%clk 0:01:57]} 9. Bb2 {[%clk 0:02:02]}  Ncd4 {[%clk 0:01:48]} 10. Nxd4 {[%clk 0:01:36]}  exd4 {[%clk 0:01:45]} 11. Qb3 {[%clk 0:01:34]}  c5 {[%clk 0:01:27]} 12. g3 {[%clk 0:01:32]}  Qb6 {[%clk 0:01:19]} 13. Bg2 {[%clk 0:01:31]}  Be7 {[%clk 0:01:17]} 14. O-O {[%clk 0:01:32]}  O-O {[%clk 0:01:09]} 15. Nd2 {[%clk 0:01:31]}  cxb4 {[%clk 0:01:02]} 16. axb4 {[%clk 0:01:28]}  Bxb4 {[%clk 0:01:00]} 17. Ne4 {[%clk 0:01:08]}  a5 {[%clk 0:00:56]} 18. Ba3 {[%clk 0:00:54]}  Bd7 {[%clk 0:00:49]} 19. Rfb1 {[%clk 0:00:54]}  Bc6 {[%clk 0:00:44]} 20. c5 {[%clk 0:00:36]}  Qb5 {[%clk 0:00:32]} 21. Qc2 {[%clk 0:00:13]}  h6 {[%clk 0:00:24]} 22. Rc1 {[%clk 0:00:07]}  Rfd8 {[%clk 0:00:22]} 23. Nd6 {[%clk 0:00:06]}  Qxc5 {[%clk 0:00:17]} 24. Qxc5 {[%clk 0:00:04]}  Bxc5 {[%clk 0:00:13]} 25. Nxb7 {[%clk 0:00:03]}  Bxb7 {[%clk 0:00:04]} 26. Bxb7 {[%clk 0:00:04]}  Bxa3 {[%clk 0:00:04]} 27. Rxa3 {[%clk 0:00:05]}  Ra7 {[%clk 0:00:03]} 28. Be4 {[%clk 0:00:05]}  g6 {[%clk 0:00:02]} 29. Bd3 {[%clk 0:00:05]}  a4 {[%clk 0:00:01]} 30. Rc4 {[%clk 0:00:04]} 1-0


[Site "https://www.chess.com"]

[Event "Titled Tuesday Blitz February 28 Late 2023"]
[White "Vasquez Schroeder, Rodrigo"]
[Black "Deac, Bogdan-Daniel"]
[WhiteFideId "3400042"]
[BlackFideId "1226380"]
[WhiteElo "2600"]
[BlackElo "2649"]
[Result "1-0"]
[Round "07"]
[TimeControl "180+2"]
[Date "2023.02.28"]
[WhiteClock "0:00:28"]
[BlackClock "0:00:01"]

1. d4 {[%clk 0:02:56]}  Nf6 {[%clk 0:02:59]} 2. Nf3 {[%clk 0:02:56]}  d5 {[%clk 0:02:58]} 3. c4 {[%clk 0:02:55]}  e6 {[%clk 0:02:58]} 4. Nc3 {[%clk 0:02:55]}  a6 {[%clk 0:02:58]} 5. cxd5 {[%clk 0:02:53]}  exd5 {[%clk 0:02:59]} 6. Bg5 {[%clk 0:02:53]}  Be6 {[%clk 0:02:59]} 7. e3 {[%clk 0:02:53]}  Nbd7 {[%clk 0:03:00]} 8. Bd3 {[%clk 0:02:52]}  h6 {[%clk 0:03:00]} 9. Bh4 {[%clk 0:02:52]}  Bd6 {[%clk 0:03:00]} 10. O-O {[%clk 0:02:51]}  c6 {[%clk 0:02:59]} 11. Qc2 {[%clk 0:02:47]}  O-O {[%clk 0:02:58]} 12. a3 {[%clk 0:02:47]}  Qb8 {[%clk 0:02:47]} 13. Bg3 {[%clk 0:02:46]}  Bxg3 {[%clk 0:02:45]} 14. hxg3 {[%clk 0:02:45]}  Re8 {[%clk 0:02:45]} 15. b4 {[%clk 0:02:44]}  Qd6 {[%clk 0:02:45]} 16. Na4 {[%clk 0:02:43]}  Bg4 {[%clk 0:02:34]} 17. Nd2 {[%clk 0:02:39]}  h5 {[%clk 0:02:31]} 18. Nc5 {[%clk 0:02:36]}  Rab8 {[%clk 0:02:31]} 19. Rac1 {[%clk 0:02:34]}  Nf8 {[%clk 0:02:05]} 20. Rfe1 {[%clk 0:02:29]}  Re7 {[%clk 0:01:57]} 21. Nf3 {[%clk 0:02:19]}  N6d7 {[%clk 0:01:41]} 22. Bf5 {[%clk 0:02:10]}  g6 {[%clk 0:01:08]} 23. Bd3 {[%clk 0:01:57]}  Qf6 {[%clk 0:00:51]} 24. Nh2 {[%clk 0:01:51]}  Be6 {[%clk 0:00:50]} 25. Rcd1 {[%clk 0:01:41]}  Nh7 {[%clk 0:00:44]} 26. e4 {[%clk 0:01:36]}  dxe4 {[%clk 0:00:38]} 27. Nxe4 {[%clk 0:01:35]}  Qg7 {[%clk 0:00:35]} 28. Nc5 {[%clk 0:01:21]}  Nxc5 {[%clk 0:00:30]} 29. dxc5 {[%clk 0:01:20]}  Rbe8 {[%clk 0:00:30]} 30. Nf1 {[%clk 0:01:12]}  Qf6 {[%clk 0:00:27]} 31. Ne3 {[%clk 0:01:11]}  h4 {[%clk 0:00:27]} 32. gxh4 {[%clk 0:01:11]}  Qxh4 {[%clk 0:00:28]} 33. Bf1 {[%clk 0:01:03]}  Nf6 {[%clk 0:00:26]} 34. g3 {[%clk 0:01:00]}  Qh5 {[%clk 0:00:23]} 35. Bg2 {[%clk 0:01:00]}  Bc8 {[%clk 0:00:17]} 36. Qd2 {[%clk 0:00:58]}  Kg7 {[%clk 0:00:13]} 37. Qd4 {[%clk 0:00:56]}  Qe5 {[%clk 0:00:08]} 38. Qxe5 {[%clk 0:00:50]}  Rxe5 {[%clk 0:00:09]} 39. Rd6 {[%clk 0:00:49]}  Ng4 {[%clk 0:00:07]} 40. Rd3 {[%clk 0:00:48]}  a5 {[%clk 0:00:06]} 41. Bf3 {[%clk 0:00:47]}  axb4 {[%clk 0:00:06]} 42. axb4 {[%clk 0:00:46]}  Nf6 {[%clk 0:00:04]} 43. Rd4 {[%clk 0:00:46]}  Be6 {[%clk 0:00:04]} 44. Red1 {[%clk 0:00:45]}  Ra8 {[%clk 0:00:04]} 45. R1d2 {[%clk 0:00:45]}  Ra3 {[%clk 0:00:03]} 46. Kg2 {[%clk 0:00:45]}  Rb3 {[%clk 0:00:04]} 47. Bd1 {[%clk 0:00:43]}  Rb1 {[%clk 0:00:03]} 48. Bc2 {[%clk 0:00:43]}  Ra1 {[%clk 0:00:03]} 49. Bd3 {[%clk 0:00:42]}  Rh5 {[%clk 0:00:03]} 50. Bc4 {[%clk 0:00:40]}  Bxc4 {[%clk 0:00:02]} 51. Rxc4 {[%clk 0:00:40]}  Rhh1 {[%clk 0:00:02]} 52. Kf3 {[%clk 0:00:40]}  Ra3 {[%clk 0:00:02]} 53. Rf4 {[%clk 0:00:37]}  Rb1 {[%clk 0:00:01]} 54. Kg2 {[%clk 0:00:34]}  Rba1 {[%clk 0:00:01]} 55. Rd6 {[%clk 0:00:33]}  Nh7 {[%clk 0:00:01]} 56. Rd7 {[%clk 0:00:32]}  Ng5 {[%clk 0:00:01]} 57. Rxb7 {[%clk 0:00:30]}  R1a2 {[%clk 0:00:02]} 58. Ng4 {[%clk 0:00:30]}  Ra7 {[%clk 0:00:02]} 59. Rxa7 {[%clk 0:00:29]}  Rxa7 {[%clk 0:00:02]} 60. Ne5 {[%clk 0:00:29]}  Ra6 {[%clk 0:00:03]} 61. Rd4 {[%clk 0:00:28]}  Ra7 {[%clk 0:00:01]} 62. Nxc6 {[%clk 0:00:28]} 1-0


[Site "https://www.chess.com"]

[Event "Titled Tuesday Blitz February 28 Late 2023"]
[White "Aldokhin, Ivan"]
[Black "Chigaev, Maksim"]
[WhiteFideId "24115720"]
[BlackFideId "4108116"]
[WhiteElo "2322"]
[BlackElo "2547"]
[Result "0-1"]
[Round "07"]
[TimeControl "180+2"]
[Date "2023.02.28"]
[WhiteClock "0:00:01"]
[BlackClock "0:00:18"]

1. e4 {[%clk 0:02:58]}  c5 {[%clk 0:03:00]} 2. Nf3 {[%clk 0:02:57]}  e6 {[%clk 0:03:01]} 3. d4 {[%clk 0:02:58]}  cxd4 {[%clk 0:03:02]} 4. Nxd4 {[%clk 0:02:58]}  Nf6 {[%clk 0:03:02]} 5. Nc3 {[%clk 0:02:58]}  Nc6 {[%clk 0:03:03]} 6. Nxc6 {[%clk 0:02:57]}  bxc6 {[%clk 0:03:04]} 7. Bd3 {[%clk 0:02:57]}  d5 {[%clk 0:03:04]} 8. Qe2 {[%clk 0:02:56]}  Be7 {[%clk 0:03:04]} 9. O-O {[%clk 0:02:56]}  O-O {[%clk 0:03:04]} 10. Bf4 {[%clk 0:02:57]}  Nd7 {[%clk 0:03:00]} 11. Na4 {[%clk 0:02:22]}  a5 {[%clk 0:02:40]} 12. c4 {[%clk 0:02:20]}  e5 {[%clk 0:02:40]} 13. Bd2 {[%clk 0:02:09]}  d4 {[%clk 0:02:40]} 14. a3 {[%clk 0:02:02]}  c5 {[%clk 0:02:29]} 15. f4 {[%clk 0:02:00]}  Bb7 {[%clk 0:02:12]} 16. g3 {[%clk 0:01:46]}  Bc6 {[%clk 0:02:10]} 17. b3 {[%clk 0:01:46]}  Rb8 {[%clk 0:02:07]} 18. Bc2 {[%clk 0:01:43]}  exf4 {[%clk 0:01:36]} 19. Bxf4 {[%clk 0:01:34]}  Rb7 {[%clk 0:01:33]} 20. e5 {[%clk 0:01:32]}  Nb6 {[%clk 0:00:54]} 21. Nxb6 {[%clk 0:00:55]}  Rxb6 {[%clk 0:00:54]} 22. e6 {[%clk 0:00:56]}  f5 {[%clk 0:00:44]} 23. g4 {[%clk 0:00:47]}  d3 {[%clk 0:00:33]} 24. Bxd3 {[%clk 0:00:41]}  Rxb3 {[%clk 0:00:29]} 25. Bxf5 {[%clk 0:00:23]}  Qd4+ {[%clk 0:00:28]} 26. Qf2 {[%clk 0:00:24]}  g6 {[%clk 0:00:21]} 27. Bc2 {[%clk 0:00:10]}  Rc3 {[%clk 0:00:21]} 28. Qxd4 {[%clk 0:00:05]}  cxd4 {[%clk 0:00:22]} 29. Bd1 {[%clk 0:00:02]}  Bc5 {[%clk 0:00:21]} 30. Rc1 {[%clk 0:00:02]}  d3+ {[%clk 0:00:19]} 31. Rf2 {[%clk 0:00:02]}  Rxc1 {[%clk 0:00:18]} 32. Bxc1 {[%clk 0:00:01]}  Rxf2 {[%clk 0:00:18]} 0-1


[Site "https://www.chess.com"]

[Event "Titled Tuesday Blitz February 28 Late 2023"]
[White "Wieczorek, Oskar"]
[Black "Rustemov, Alexander"]
[WhiteFideId "1133950"]
[BlackFideId "4119002"]
[WhiteElo "2418"]
[BlackElo "2902"]
[Result "1-0"]
[Round "07"]
[TimeControl "180+2"]
[Date "2023.02.28"]
[WhiteClock "0:00:15"]
[BlackClock "0:00:38"]

1. e4 {[%clk 0:03:00]}  e6 {[%clk 0:02:59]} 2. Qe2 {[%clk 0:02:58]}  d5 {[%clk 0:03:00]} 3. exd5 {[%clk 0:02:58]}  Qxd5 {[%clk 0:02:56]} 4. Nc3 {[%clk 0:02:58]}  Qd8 {[%clk 0:02:55]} 5. Nf3 {[%clk 0:02:59]}  c5 {[%clk 0:02:55]} 6. g3 {[%clk 0:02:59]}  Nc6 {[%clk 0:02:55]} 7. Bg2 {[%clk 0:03:00]}  Nge7 {[%clk 0:02:56]} 8. O-O {[%clk 0:03:00]}  Nf5 {[%clk 0:02:57]} 9. Ne4 {[%clk 0:02:56]}  Nfd4 {[%clk 0:02:53]} 10. Nxd4 {[%clk 0:02:54]}  cxd4 {[%clk 0:02:53]} 11. d3 {[%clk 0:02:47]}  Be7 {[%clk 0:02:53]} 12. f4 {[%clk 0:02:47]}  O-O {[%clk 0:02:53]} 13. c4 {[%clk 0:02:43]}  dxc3 {[%clk 0:02:52]} 14. bxc3 {[%clk 0:02:44]}  b6 {[%clk 0:02:50]} 15. Kh1 {[%clk 0:02:28]}  Ba6 {[%clk 0:02:50]} 16. Rd1 {[%clk 0:02:26]}  Rc8 {[%clk 0:02:49]} 17. Bb2 {[%clk 0:02:23]}  Qd7 {[%clk 0:02:48]} 18. c4 {[%clk 0:02:23]}  Nd4 {[%clk 0:02:45]} 19. Qf2 {[%clk 0:02:23]}  Rfd8 {[%clk 0:02:44]} 20. Ng5 {[%clk 0:02:02]}  h6 {[%clk 0:02:30]} 21. Nf3 {[%clk 0:02:00]}  Bc5 {[%clk 0:02:27]} 22. Ne5 {[%clk 0:01:42]}  Qc7 {[%clk 0:02:25]} 23. Qf1 {[%clk 0:01:33]}  Nf5 {[%clk 0:02:22]} 24. Qe2 {[%clk 0:01:19]}  Ne3 {[%clk 0:02:22]} 25. d4 {[%clk 0:01:20]}  Nxd1 {[%clk 0:02:12]} 26. Rxd1 {[%clk 0:01:21]}  Bd6 {[%clk 0:02:02]} 27. Nc6 {[%clk 0:01:21]}  Rd7 {[%clk 0:01:59]} 28. Qg4 {[%clk 0:01:14]}  Bxc4 {[%clk 0:01:38]} 29. d5 {[%clk 0:00:53]}  f5 {[%clk 0:01:35]} 30. Qg6 {[%clk 0:00:37]}  Bxd5 {[%clk 0:01:33]} 31. Rxd5 {[%clk 0:00:29]}  Qxc6 {[%clk 0:00:48]} 32. Qxe6+ {[%clk 0:00:28]}  Kh7 {[%clk 0:00:47]} 33. Qxf5+ {[%clk 0:00:22]}  Kh8 {[%clk 0:00:45]} 34. Qe6 {[%clk 0:00:19]}  Kh7 {[%clk 0:00:43]} 35. Be4+ {[%clk 0:00:19]}  Kh8 {[%clk 0:00:41]} 36. Qxh6+ {[%clk 0:00:15]}  Kg8 {[%clk 0:00:42]} 37. Qe6+ {[%clk 0:00:16]}  Kf8 {[%clk 0:00:38]} 38. Rf5+ {[%clk 0:00:15]} 1-0


[Site "https://www.chess.com"]

[Event "Titled Tuesday Blitz February 28 Late 2023"]
[White "Alikhanov, Felix"]
[Black "Bernadskiy, Vitaliy"]
[WhiteFideId "4157427"]
[BlackFideId "14100371"]
[WhiteElo "2425"]
[BlackElo "2488"]
[Result "0-1"]
[Round "07"]
[TimeControl "180+2"]
[Date "2023.02.28"]
[WhiteClock "0:00:01"]
[BlackClock "0:00:42"]

1. e4 {[%clk 0:02:59]}  c5 {[%clk 0:02:59]} 2. Nf3 {[%clk 0:02:59]}  e6 {[%clk 0:02:58]} 3. c3 {[%clk 0:02:58]}  Nf6 {[%clk 0:02:57]} 4. e5 {[%clk 0:02:59]}  Nd5 {[%clk 0:02:58]} 5. Bc4 {[%clk 0:02:59]}  Be7 {[%clk 0:02:56]} 6. O-O {[%clk 0:02:59]}  O-O {[%clk 0:02:55]} 7. d4 {[%clk 0:02:59]}  cxd4 {[%clk 0:02:55]} 8. cxd4 {[%clk 0:02:59]}  Nc6 {[%clk 0:02:54]} 9. Qe2 {[%clk 0:03:00]}  d6 {[%clk 0:02:52]} 10. Qe4 {[%clk 0:02:53]}  Ndb4 {[%clk 0:02:39]} 11. exd6 {[%clk 0:02:39]}  Qxd6 {[%clk 0:02:34]} 12. Nc3 {[%clk 0:02:36]}  Na5 {[%clk 0:02:29]} 13. Be2 {[%clk 0:02:20]}  Nd5 {[%clk 0:02:18]} 14. Bg5 {[%clk 0:02:10]}  Nc6 {[%clk 0:01:59]} 15. Bd3 {[%clk 0:01:58]}  g6 {[%clk 0:01:37]} 16. Bh6 {[%clk 0:01:52]}  Rd8 {[%clk 0:01:33]} 17. Rad1 {[%clk 0:01:31]}  Nf6 {[%clk 0:01:31]} 18. Qh4 {[%clk 0:01:03]}  Nh5 {[%clk 0:01:31]} 19. Bg5 {[%clk 0:00:56]}  Bxg5 {[%clk 0:01:30]} 20. Qxg5 {[%clk 0:00:56]}  Qf4 {[%clk 0:01:29]} 21. Qxf4 {[%clk 0:00:40]}  Nxf4 {[%clk 0:01:30]} 22. Be4 {[%clk 0:00:39]}  Ne7 {[%clk 0:01:29]} 23. g3 {[%clk 0:00:36]}  Nfd5 {[%clk 0:01:27]} 24. Rfe1 {[%clk 0:00:35]}  Nf6 {[%clk 0:01:24]} 25. Bc2 {[%clk 0:00:33]}  b6 {[%clk 0:01:19]} 26. Ne4 {[%clk 0:00:29]}  Nfd5 {[%clk 0:01:15]} 27. Bb3 {[%clk 0:00:27]}  Kg7 {[%clk 0:01:12]} 28. Ne5 {[%clk 0:00:25]}  a5 {[%clk 0:01:06]} 29. h4 {[%clk 0:00:18]}  f6 {[%clk 0:01:03]} 30. Nf3 {[%clk 0:00:09]}  Bb7 {[%clk 0:01:02]} 31. Nfd2 {[%clk 0:00:07]}  Nf5 {[%clk 0:00:57]} 32. Nc4 {[%clk 0:00:02]}  a4 {[%clk 0:00:50]} 33. Bc2 {[%clk 0:00:02]}  Nb4 {[%clk 0:00:47]} 34. Bb1 {[%clk 0:00:01]}  Nxd4 {[%clk 0:00:46]} 35. Kf1 {[%clk 0:00:01]}  Ba6 {[%clk 0:00:42]} 0-1


[Site "https://www.chess.com"]